BODY,BODY NAME,DATE,TRANSACTION NUMBER, AMOUNT ,SUPPLIER NAME,SUPPLIER ID,EXPENSE AREA,EXPENSE TYPE,EXPENSE CODE
http://statistics.data.gov.uk/id/local-authority/12UE,Huntingdonshire District Council,21/03/2013,122889,1618.14,Civica Uk Ltd,CR415826,Abandoned Vehicles,Software,206
http://statistics.data.gov.uk/id/local-authority/12UE,Huntingdonshire District Council,07/03/2013,122080,714.48,King Street Housing Society,CR409301,Accommodation For Homeless,Management Charge,733
http://statistics.data.gov.uk/id/local-authority/12UE,Huntingdonshire District Council,27/03/2013,123400,1323.57,King Street Housing Society,CR409301,Accommodation For Homeless,Management Charge,733
http://statistics.data.gov.uk/id/local-authority/12UE,Huntingdonshire District Council,07/03/2013,122079,1358.62,King Street Housing Society,CR409301,Accommodation For Homeless,Management Charge,733
http://statistics.data.gov.uk/id/local-authority/12UE,Huntingdonshire District Council,27/03/2013,122046,1849.13,King Street Housing Society,CR409301,Accommodation For Homeless,Management Charge,733
http://statistics.data.gov.uk/id/local-authority/12UE,Huntingdonshire District Council,07/03/2013,122049,2052,Elephant & Castle Freehouse & Motel,CR401969,Accommodation For Homeless,Bed & Breakfast Payment,818
http://statistics.data.gov.uk/id/local-authority/12UE,Huntingdonshire District Council,14/03/2013,122559,2214,Elephant & Castle Freehouse & Motel,CR401969,Accommodation For Homeless,Bed & Breakfast Payment,818
http://statistics.data.gov.uk/id/local-authority/12UE,Huntingdonshire District Council,21/03/2013,122981,2484,Elephant & Castle Freehouse & Motel,CR401969,Accommodation For Homeless,Bed & Breakfast Payment,818
http://statistics.data.gov.uk/id/local-authority/12UE,Huntingdonshire District Council,27/03/2013,123358,2646,Elephant & Castle Freehouse & Motel,CR401969,Accommodation For Homeless,Bed & Breakfast Payment,818
http://statistics.data.gov.uk/id/local-authority/12UE,Huntingdonshire District Council,07/03/2013,121700,2700,Elephant & Castle Freehouse & Motel,CR401969,Accommodation For Homeless,Bed & Breakfast Payment,818
http://statistics.data.gov.uk/id/local-authority/12UE,Huntingdonshire District Council,07/03/2013,120939,585,The Station Hotel,CR453752,Accommodation For Homeless,Bed & Breakfast Payment,818
http://statistics.data.gov.uk/id/local-authority/12UE,Huntingdonshire District Council,07/03/2013,120938,630,The Station Hotel,CR453752,Accommodation For Homeless,Bed & Breakfast Payment,818
http://statistics.data.gov.uk/id/local-authority/12UE,Huntingdonshire District Council,07/03/2013,120940,630,The Station Hotel,CR453752,Accommodation For Homeless,Bed & Breakfast Payment,818
http://statistics.data.gov.uk/id/local-authority/12UE,Huntingdonshire District Council,14/03/2013,121283,630,The Station Hotel,CR453752,Accommodation For Homeless,Bed & Breakfast Payment,818
http://statistics.data.gov.uk/id/local-authority/12UE,Huntingdonshire District Council,14/03/2013,121288,630,The Station Hotel,CR453752,Accommodation For Homeless,Bed & Breakfast Payment,818
http://statistics.data.gov.uk/id/local-authority/12UE,Huntingdonshire District Council,21/03/2013,122337,765,Anglia Co-Operative Funerals,CR401059,Burials Under Health Acts,Legal Fees,729
http://statistics.data.gov.uk/id/local-authority/12UE,Huntingdonshire District Council,21/03/2013,122338,765,Anglia Co-Operative Funerals,CR401059,Burials Under Health Acts,Legal Fees,729
http://statistics.data.gov.uk/id/local-authority/12UE,Huntingdonshire District Council,07/03/2013,120848,2209.74,J Breheny Contractors Ltd,CR000314,Bus Shelters,Sitework,359
http://statistics.data.gov.uk/id/local-authority/12UE,Huntingdonshire District Council,14/03/2013,121534,2107.51,Swalec,CR407130,Bus Stations,Electricity,420
http://statistics.data.gov.uk/id/local-authority/12UE,Huntingdonshire District Council,07/03/2013,120853,1038,Beebys Limited,CR415822,Bus Stations,Building Cleaning Internal,440
http://statistics.data.gov.uk/id/local-authority/12UE,Huntingdonshire District Council,14/03/2013,547575,587,St Ives Town Council,CR000701,Bus Stations,Electricity,420
http://statistics.data.gov.uk/id/local-authority/12UE,Huntingdonshire District Council,27/03/2013,122933,3600,Ytko,CR455448,Business & Enterprise Support,Training - Professional,130
http://statistics.data.gov.uk/id/local-authority/12UE,Huntingdonshire District Council,27/03/2013,122932,20000,Ytko,CR455448,Business & Enterprise Support,Training - Professional,130
http://statistics.data.gov.uk/id/local-authority/12UE,Huntingdonshire District Council,07/03/2013,120857,3600,Archant Herts And Cambs,CR403271,Business & Enterprise Support,Advertising/Promoting Services,255
http://statistics.data.gov.uk/id/local-authority/12UE,Huntingdonshire District Council,21/03/2013,121582,616.8,Action For Market Towns,CR031464,Business & Enterprise Support,Corporate Subscriptions,754
http://statistics.data.gov.uk/id/local-authority/12UE,Huntingdonshire District Council,21/03/2013,122824,1483.54,British Telecommunications Plc,CR027071,C C T V,Electricity,420
http://statistics.data.gov.uk/id/local-authority/12UE,Huntingdonshire District Council,14/03/2013,121103,2807.81,Quadrant Security Group,CR027775,C C T V,Equipment Maintenance,511
http://statistics.data.gov.uk/id/local-authority/12UE,Huntingdonshire District Council,07/03/2013,121892,597.6,Forum Events 2 Ltd,CR455599,Call Centre,Training - Other,136
http://statistics.data.gov.uk/id/local-authority/12UE,Huntingdonshire District Council,14/03/2013,121527,16.79,T N T Post London Ltd,CR479965,Call Centre,Postage,231
http://statistics.data.gov.uk/id/local-authority/12UE,Huntingdonshire District Council,21/03/2013,121526,0.35,T N T Post London Ltd,CR479965,Call Centre,Postage,231
http://statistics.data.gov.uk/id/local-authority/12UE,Huntingdonshire District Council,27/03/2013,122815,6438,Cambridgeshire County Council,CR477465,Call Centre,Service Charges,412
http://statistics.data.gov.uk/id/local-authority/12UE,Huntingdonshire District Council,21/03/2013,121551,502.2,Emqc Ltd,CR477882,Call Centre,Benchmarking,707
http://statistics.data.gov.uk/id/local-authority/12UE,Huntingdonshire District Council,14/03/2013,121012,511.2,Mystery Shoppers Ltd,CR413512,Call Centre,Benchmarking,707
http://statistics.data.gov.uk/id/local-authority/12UE,Huntingdonshire District Council,07/03/2013,120842,682.99,J Breheny Contractors Ltd,CR000314,Car Park Assets,Sitework,359
http://statistics.data.gov.uk/id/local-authority/12UE,Huntingdonshire District Council,27/03/2013,122181,756,K & M Lighting Services Ltd,CR455166,Car Park Assets,Sitework,359
http://statistics.data.gov.uk/id/local-authority/12UE,Huntingdonshire District Council,27/03/2013,122096,1683.47,Oastlodge Ltd,CR479114,Car Park Management,Rent,410
http://statistics.data.gov.uk/id/local-authority/12UE,Huntingdonshire District Council,21/03/2013,122579,526.06,Swalec,CR407130,Car Park Management,Electricity,420
http://statistics.data.gov.uk/id/local-authority/12UE,Huntingdonshire District Council,07/03/2013,121533,660.51,Swalec,CR407130,Car Park Management,Electricity,420
http://statistics.data.gov.uk/id/local-authority/12UE,Huntingdonshire District Council,27/03/2013,122867,1080,Psk Installations,CR416540,Car Park Management,Equipment Purchases,500
http://statistics.data.gov.uk/id/local-authority/12UE,Huntingdonshire District Council,27/03/2013,122809,3908.89,Cale Briparc Ltd,CR401137,Car Park Management,Car Park Machines,522
http://statistics.data.gov.uk/id/local-authority/12UE,Huntingdonshire District Council,27/03/2013,122623,4656.76,G4s Cashservices Uk Ltd,CR407133,Car Park Management,Cash Collection,702
http://statistics.data.gov.uk/id/local-authority/12UE,Huntingdonshire District Council,21/03/2013,121762,1297.3,Archant Herts & Cambs,CR415764,Car Park Policy,Advertising - Communication,256
http://statistics.data.gov.uk/id/local-authority/12UE,Huntingdonshire District Council,27/03/2013,122021,890.25,Cambridgeshire County Council,CR416949,Car Parks Capital,Sitework,359
http://statistics.data.gov.uk/id/local-authority/12UE,Huntingdonshire District Council,27/03/2013,122336,610,Ilex Tutorial College Ltd,CR410168,Central & Democratic Serv Mu,Training - Other,136
http://statistics.data.gov.uk/id/local-authority/12UE,Huntingdonshire District Council,14/03/2013,121035,4320,Practical Law Company Ltd,CR480337,Central & Democratic Serv Mu,Other I T Hardware,203
http://statistics.data.gov.uk/id/local-authority/12UE,Huntingdonshire District Council,14/03/2013,121059,2491.4,Hrmeansbusiness Ltd,CR482528,Chief Executive & Comt,Consultants,711
http://statistics.data.gov.uk/id/local-authority/12UE,Huntingdonshire District Council,14/03/2013,121058,4889.4,Sharpe Pritchard,CR480887,Chief Executive & Comt,Consultants,711
http://statistics.data.gov.uk/id/local-authority/12UE,Huntingdonshire District Council,21/03/2013,547951,5580,Solace Enterprises,CR033610,Chief Executive & Comt,Recruitment - Consultants,123
http://statistics.data.gov.uk/id/local-authority/12UE,Huntingdonshire District Council,27/03/2013,122173,9000,Shared Service Architects,CR481087,Community Projects,Training - Professional,130
http://statistics.data.gov.uk/id/local-authority/12UE,Huntingdonshire District Council,21/03/2013,122889,1618.14,Civica Uk Ltd,CR415826,Community Safety,Software,206
http://statistics.data.gov.uk/id/local-authority/12UE,Huntingdonshire District Council,07/03/2013,121451,3661.78,Automotive Leasing,CR406882,Community Services M Us,Vehicle Operating Lease,601
http://statistics.data.gov.uk/id/local-authority/12UE,Huntingdonshire District Council,27/03/2013,122057,13140,Eps Ltd,CR413448,Contaminated Land,Subcontractors,777
http://statistics.data.gov.uk/id/local-authority/12UE,Huntingdonshire District Council,14/03/2013,121333,1533.6,Ibm United Kingdom Ltd,CR482315,Corporate Office,Software,206
http://statistics.data.gov.uk/id/local-authority/12UE,Huntingdonshire District Council,14/03/2013,121945,1620,Cfl Estate Services,CR455208,Corporate Office,Property Management,781
http://statistics.data.gov.uk/id/local-authority/12UE,Huntingdonshire District Council,14/03/2013,121010,800.02,Newlyn Plc,CR409114,Council Tax,Bailiffs,703
http://statistics.data.gov.uk/id/local-authority/12UE,Huntingdonshire District Council,27/03/2013,121712,862.64,Newlyn Plc,CR409114,Council Tax,Bailiffs,703
http://statistics.data.gov.uk/id/local-authority/12UE,Huntingdonshire District Council,21/03/2013,121445,1362.98,Newlyn Plc,CR409114,Council Tax,Bailiffs,703
http://statistics.data.gov.uk/id/local-authority/12UE,Huntingdonshire District Council,07/03/2013,120948,1429.3,Newlyn Plc,CR409114,Council Tax,Bailiffs,703
http://statistics.data.gov.uk/id/local-authority/12UE,Huntingdonshire District Council,21/03/2013,121604,675.36,M & D Flooring Ltd,CR455531,Countryside,Gen Building Mtce - Responsive,303
http://statistics.data.gov.uk/id/local-authority/12UE,Huntingdonshire District Council,27/03/2013,122971,808.04,Swalec,CR407130,Countryside,Electricity,420
http://statistics.data.gov.uk/id/local-authority/12UE,Huntingdonshire District Council,14/03/2013,121545,1323.17,Swalec,CR407130,Countryside,Electricity,420
http://statistics.data.gov.uk/id/local-authority/12UE,Huntingdonshire District Council,27/03/2013,122983,870.04,British Gas Business,CR478619,Countryside,Gas,421
http://statistics.data.gov.uk/id/local-authority/12UE,Huntingdonshire District Council,27/03/2013,122059,1056.83,Arthur Ibbett Ltd,CR000430,Countryside,Equipment Purchases,500
http://statistics.data.gov.uk/id/local-authority/12UE,Huntingdonshire District Council,07/03/2013,122090,1164,Arthur Ibbett Ltd,CR000430,Countryside,Equipment Purchases,500
http://statistics.data.gov.uk/id/local-authority/12UE,Huntingdonshire District Council,07/03/2013,121939,721.19,Arthur Ibbett Ltd,CR000430,Countryside,Vehicle Maintenance External,619
http://statistics.data.gov.uk/id/local-authority/12UE,Huntingdonshire District Council,27/03/2013,123512,1500,Zurich Municipal,CR003638,Countryside,Insurance Excess,797
http://statistics.data.gov.uk/id/local-authority/12UE,Huntingdonshire District Council,21/03/2013,547305,3810,Eastern Tree Surgery,CR033406,Countryside,Tree Maintenance,357
http://statistics.data.gov.uk/id/local-authority/12UE,Huntingdonshire District Council,21/03/2013,547310,2085.6,A K & J F Farms,CR030450,Countryside,Materials,550
http://statistics.data.gov.uk/id/local-authority/12UE,Huntingdonshire District Council,07/03/2013,121892,298.8,Forum Events 2 Ltd,CR455599,Customer Service Centres,Training - Other,136
http://statistics.data.gov.uk/id/local-authority/12UE,Huntingdonshire District Council,27/03/2013,122624,372.06,G4s Cashservices Uk Ltd,CR407133,Customer Service Centres,Cash Collection,702
http://statistics.data.gov.uk/id/local-authority/12UE,Huntingdonshire District Council,21/03/2013,121551,502.2,Emqc Ltd,CR477882,Customer Service Centres,Benchmarking,707
http://statistics.data.gov.uk/id/local-authority/12UE,Huntingdonshire District Council,14/03/2013,121012,567.6,Mystery Shoppers Ltd,CR413512,Customer Service Centres,Benchmarking,707
http://statistics.data.gov.uk/id/local-authority/12UE,Huntingdonshire District Council,27/03/2013,122136,570,Sabell & Co (B'Ham) Ltd,CR000712,Dc Application Processing,Stationery,225
http://statistics.data.gov.uk/id/local-authority/12UE,Huntingdonshire District Council,27/03/2013,121937,774,Haymarket Business Publications Ltd,CR417029,Dc Application Processing,Corporate Subscriptions,754
http://statistics.data.gov.uk/id/local-authority/12UE,Huntingdonshire District Council,07/03/2013,122117,1800,Pos Enterprises,CR413287,Dc Application Processing,Corporate Subscriptions,754
http://statistics.data.gov.uk/id/local-authority/12UE,Huntingdonshire District Council,21/03/2013,121885,3907.18,Phoenix Software Ltd,CR031918,Development Team,Software,206
http://statistics.data.gov.uk/id/local-authority/12UE,Huntingdonshire District Council,14/03/2013,121606,1228.8,Surrey Envelopes,CR482428,Document Centre,Envelopes,224
http://statistics.data.gov.uk/id/local-authority/12UE,Huntingdonshire District Council,21/03/2013,121601,1977.6,Surrey Envelopes,CR482428,Document Centre,Envelopes,224
http://statistics.data.gov.uk/id/local-authority/12UE,Huntingdonshire District Council,21/03/2013,121966,1272.76,Royal Mail,CR027083,Document Centre,Postage,231
http://statistics.data.gov.uk/id/local-authority/12UE,Huntingdonshire District Council,07/03/2013,121007,1568.38,Royal Mail,CR027083,Document Centre,Postage,231
http://statistics.data.gov.uk/id/local-authority/12UE,Huntingdonshire District Council,14/03/2013,121527,1027.01,T N T Post London Ltd,CR479965,Document Centre,Postage,231
http://statistics.data.gov.uk/id/local-authority/12UE,Huntingdonshire District Council,21/03/2013,121526,1258.14,T N T Post London Ltd,CR479965,Document Centre,Postage,231
http://statistics.data.gov.uk/id/local-authority/12UE,Huntingdonshire District Council,07/03/2013,121008,2126.02,Konica Minolta Business Solutions East Ltd,CR478866,Document Centre,Equipment Maintenance,511
http://statistics.data.gov.uk/id/local-authority/12UE,Huntingdonshire District Council,21/03/2013,121687,820.8,Neopost,CR028326,Document Centre,Equipment Maintenance,511
http://statistics.data.gov.uk/id/local-authority/12UE,Huntingdonshire District Council,27/03/2013,122358,1035.17,Oce Uk Limited,CR409013,Document Centre,Equipment Maintenance,511
http://statistics.data.gov.uk/id/local-authority/12UE,Huntingdonshire District Council,27/03/2013,122375,1899.53,Oce Uk Limited,CR409013,Document Centre,Equipment Maintenance,511
http://statistics.data.gov.uk/id/local-authority/12UE,Huntingdonshire District Council,27/03/2013,122376,4602.72,Oce Uk Limited,CR409013,Document Centre,Equipment Maintenance,511
http://statistics.data.gov.uk/id/local-authority/12UE,Huntingdonshire District Council,14/03/2013,121716,1575.88,Oce Uk Limited,CR409013,Document Centre,Materials,550
http://statistics.data.gov.uk/id/local-authority/12UE,Huntingdonshire District Council,14/03/2013,121716,45,Oce Uk Limited,CR409013,Document Centre,Paper,562
http://statistics.data.gov.uk/id/local-authority/12UE,Huntingdonshire District Council,27/03/2013,121969,820.08,Xerox Office Supplies,CR481184,Document Centre,Paper,562
http://statistics.data.gov.uk/id/local-authority/12UE,Huntingdonshire District Council,21/03/2013,121970,980.47,Xerox Office Supplies,CR481184,Document Centre,Paper,562
http://statistics.data.gov.uk/id/local-authority/12UE,Huntingdonshire District Council,27/03/2013,123345,868.68,Bigprinting,CR416383,Document Centre,Subcontractors,777
http://statistics.data.gov.uk/id/local-authority/12UE,Huntingdonshire District Council,21/03/2013,121744,25842,Clanpress King'S Lynn Ltd,CR413516,Document Centre,Subcontractors,777
http://statistics.data.gov.uk/id/local-authority/12UE,Huntingdonshire District Council,14/03/2013,121589,1275.42,Staffline Group,CR416827,Domestic Refuse,Hired Staff,100
http://statistics.data.gov.uk/id/local-authority/12UE,Huntingdonshire District Council,21/03/2013,122923,1386.19,Staffline Group,CR416827,Domestic Refuse,Hired Staff,100
http://statistics.data.gov.uk/id/local-authority/12UE,Huntingdonshire District Council,07/03/2013,121267,1470.89,Staffline Group,CR416827,Domestic Refuse,Hired Staff,100
http://statistics.data.gov.uk/id/local-authority/12UE,Huntingdonshire District Council,21/03/2013,122085,1695.9,Staffline Group,CR416827,Domestic Refuse,Hired Staff,100
http://statistics.data.gov.uk/id/local-authority/12UE,Huntingdonshire District Council,21/03/2013,122924,1728.68,Staffline Group,CR416827,Domestic Refuse,Hired Staff,100
http://statistics.data.gov.uk/id/local-authority/12UE,Huntingdonshire District Council,21/03/2013,122084,1964.2,Staffline Group,CR416827,Domestic Refuse,Hired Staff,100
http://statistics.data.gov.uk/id/local-authority/12UE,Huntingdonshire District Council,07/03/2013,121268,2181.95,Staffline Group,CR416827,Domestic Refuse,Hired Staff,100
http://statistics.data.gov.uk/id/local-authority/12UE,Huntingdonshire District Council,27/03/2013,122919,2420.45,Staffline Group,CR416827,Domestic Refuse,Hired Staff,100
http://statistics.data.gov.uk/id/local-authority/12UE,Huntingdonshire District Council,14/03/2013,121587,2463.16,Staffline Group,CR416827,Domestic Refuse,Hired Staff,100
http://statistics.data.gov.uk/id/local-authority/12UE,Huntingdonshire District Council,27/03/2013,122921,3431.83,Staffline Group,CR416827,Domestic Refuse,Hired Staff,100
http://statistics.data.gov.uk/id/local-authority/12UE,Huntingdonshire District Council,07/03/2013,121689,690,Gilden Training,CR481057,Domestic Refuse,Training - Operational,131
http://statistics.data.gov.uk/id/local-authority/12UE,Huntingdonshire District Council,14/03/2013,121528,1926.35,Royal Mail,CR027083,Domestic Refuse,Postage,231
http://statistics.data.gov.uk/id/local-authority/12UE,Huntingdonshire District Council,21/03/2013,121688,19221.08,Royal Mail,CR027083,Domestic Refuse,Postage,231
http://statistics.data.gov.uk/id/local-authority/12UE,Huntingdonshire District Council,28/03/2013,118519,-579.53,Cummins Uk,CR480395,Domestic Refuse,Vehicle Maintenance External,619
http://statistics.data.gov.uk/id/local-authority/12UE,Huntingdonshire District Council,28/03/2013,123333,579.53,Cummins Uk,CR480395,Domestic Refuse,Vehicle Maintenance External,619
http://statistics.data.gov.uk/id/local-authority/12UE,Huntingdonshire District Council,21/03/2013,122063,2523.73,Terberg Matec Uk Ltd,CR402183,Domestic Refuse,Vehicle Refurbishment,624
http://statistics.data.gov.uk/id/local-authority/12UE,Huntingdonshire District Council,21/03/2013,121573,1139.95,Dennis Eagle Ltd,CR000200,Domestic Refuse,Vehicle Parts & Fittings,625
http://statistics.data.gov.uk/id/local-authority/12UE,Huntingdonshire District Council,14/03/2013,121574,1171.02,Dennis Eagle Ltd,CR000200,Domestic Refuse,Vehicle Parts & Fittings,625
http://statistics.data.gov.uk/id/local-authority/12UE,Huntingdonshire District Council,27/03/2013,122831,636,Garwood Europe Ltd,CR415210,Domestic Refuse,Vehicle Parts & Fittings,625
http://statistics.data.gov.uk/id/local-authority/12UE,Huntingdonshire District Council,27/03/2013,122428,4033.94,Bandvulc Tyres Ltd,CR406810,Domestic Refuse,Tyres,630
http://statistics.data.gov.uk/id/local-authority/12UE,Huntingdonshire District Council,21/03/2013,121768,642,Global Fire Services Ltd,CR482562,E F H And Depots,Plant & Equipment Maintenance,380
http://statistics.data.gov.uk/id/local-authority/12UE,Huntingdonshire District Council,07/03/2013,120904,1776.1,Kone Lifts Ltd,CR000483,E F H And Depots,Plant & Equipment Maintenance,380
http://statistics.data.gov.uk/id/local-authority/12UE,Huntingdonshire District Council,14/03/2013,122165,4559.84,E-On Energy,CR416430,E F H And Depots,Electricity,420
http://statistics.data.gov.uk/id/local-authority/12UE,Huntingdonshire District Council,14/03/2013,122169,541.08,Swalec,CR407130,E F H And Depots,Electricity,420
http://statistics.data.gov.uk/id/local-authority/12UE,Huntingdonshire District Council,14/03/2013,122424,1093.76,E-On Energy,CR416430,E F H And Depots,Gas,421
http://statistics.data.gov.uk/id/local-authority/12UE,Huntingdonshire District Council,14/03/2013,121901,1356.6,Ecocleen Services Limited,CR406985,E F H And Depots,Building Cleaning Internal,440
http://statistics.data.gov.uk/id/local-authority/12UE,Huntingdonshire District Council,27/03/2013,122395,655.2,Flora Tec Ltd,CR028191,E F H And Depots,Plants And Seeds,556
http://statistics.data.gov.uk/id/local-authority/12UE,Huntingdonshire District Council,07/03/2013,120927,2475,Mr C Norbury,CR482576,Eh Drainage Holding Acs,Subcontractors,777
http://statistics.data.gov.uk/id/local-authority/12UE,Huntingdonshire District Council,14/03/2013,121527,71.68,T N T Post London Ltd,CR479965,Elections,Postage,231
http://statistics.data.gov.uk/id/local-authority/12UE,Huntingdonshire District Council,21/03/2013,121526,21.68,T N T Post London Ltd,CR479965,Elections,Postage,231
http://statistics.data.gov.uk/id/local-authority/12UE,Huntingdonshire District Council,21/03/2013,123050,500,Susie Crago,CR455587,Energy Efficiency,Equipment Purchases,500
http://statistics.data.gov.uk/id/local-authority/12UE,Huntingdonshire District Council,07/03/2013,120537,810,K & M Lighting Services Ltd,CR455166,Environment Equipment Capital,Sitework,359
http://statistics.data.gov.uk/id/local-authority/12UE,Huntingdonshire District Council,21/03/2013,122889,9708.85,Civica Uk Ltd,CR415826,Environmental Health General,Software,206
http://statistics.data.gov.uk/id/local-authority/12UE,Huntingdonshire District Council,21/03/2013,122466,1831.2,Iris Legal Solutions,CR487228,Environmental Health M Us,Corporate Subscriptions,754
http://statistics.data.gov.uk/id/local-authority/12UE,Huntingdonshire District Council,07/03/2013,120850,3729.74,J Breheny Contractors Ltd,CR000314,Environmental Imps Mgt,Sitework,359
http://statistics.data.gov.uk/id/local-authority/12UE,Huntingdonshire District Council,07/03/2013,121291,1716,Northern Energy Training Ltd,CR455519,Environmental Management,Training - Professional,130
http://statistics.data.gov.uk/id/local-authority/12UE,Huntingdonshire District Council,07/03/2013,121452,4349.95,Automotive Leasing,CR406882,Environmental Management,Vehicle Operating Lease,601
http://statistics.data.gov.uk/id/local-authority/12UE,Huntingdonshire District Council,21/03/2013,121925,2605.45,Labc Services,CR406941,Environmental Management,Corporate Subscriptions,754
http://statistics.data.gov.uk/id/local-authority/12UE,Huntingdonshire District Council,27/03/2013,123528,2271.6,Cliff Productions Ltd,CR455635,Equal Opportunities,Training - Other,136
http://statistics.data.gov.uk/id/local-authority/12UE,Huntingdonshire District Council,27/03/2013,123749,3720,National Grid Gas Plc,CR480413,Estates Properties Capital,Sitework,359
http://statistics.data.gov.uk/id/local-authority/12UE,Huntingdonshire District Council,07/03/2013,122061,10365.22,Deloitte,CR416667,Estates Properties Capital,Consultants,711
http://statistics.data.gov.uk/id/local-authority/12UE,Huntingdonshire District Council,27/03/2013,123340,5572.44,Freeth Cartwright Llp,CR480787,Estates Properties Capital,Legal Fees,729
http://statistics.data.gov.uk/id/local-authority/12UE,Huntingdonshire District Council,14/03/2013,121454,9000,Pricewaterhouse Coopers Llp,CR487210,External Audit,Audit Fees,701
http://statistics.data.gov.uk/id/local-authority/12UE,Huntingdonshire District Council,21/03/2013,121453,79706.4,Pricewaterhouse Coopers Llp,CR487210,External Audit,Audit Fees,701
http://statistics.data.gov.uk/id/local-authority/12UE,Huntingdonshire District Council,21/03/2013,121329,28801.91,Advanced Business Solutions,CR032921,Financial Services,Software,206
http://statistics.data.gov.uk/id/local-authority/12UE,Huntingdonshire District Council,14/03/2013,121159,1176,Cipfa Business Limited,CR480088,Financial Services Mus,Training - Professional,130
http://statistics.data.gov.uk/id/local-authority/12UE,Huntingdonshire District Council,21/03/2013,121959,1800,Rsm Tenon,CR480303,Financial Services Mus,Software,206
http://statistics.data.gov.uk/id/local-authority/12UE,Huntingdonshire District Council,21/03/2013,121887,5664,Cipfa Business Limited,CR480088,Financial Services Mus,Books & Publications,250
http://statistics.data.gov.uk/id/local-authority/12UE,Huntingdonshire District Council,14/03/2013,122028,2025.6,Magnet Solutions,CR416903,Financial Services Mus,Enquiries,723
http://statistics.data.gov.uk/id/local-authority/12UE,Huntingdonshire District Council,21/03/2013,122019,3174,Cipfa Business Limited,CR480088,Financial Services Mus,Corporate Subscriptions,754
http://statistics.data.gov.uk/id/local-authority/12UE,Huntingdonshire District Council,21/03/2013,121341,4722,Cipfa Business Limited,CR480088,Financial Services Mus,Corporate Subscriptions,754
http://statistics.data.gov.uk/id/local-authority/12UE,Huntingdonshire District Council,27/03/2013,122030,936.36,Days Contract Hire,CR417030,Fleet Management,Vehicle Finance Leases,602
http://statistics.data.gov.uk/id/local-authority/12UE,Huntingdonshire District Council,27/03/2013,122804,2820,Freedom Lubricants Ltd,CR411569,Fleet Management,Diesel,615
http://statistics.data.gov.uk/id/local-authority/12UE,Huntingdonshire District Council,27/03/2013,122030,93.36,Days Contract Hire,CR417030,Fleet Management,Vehicle Service,621
http://statistics.data.gov.uk/id/local-authority/12UE,Huntingdonshire District Council,27/03/2013,121578,697.64,Swift Car Care Services Group,CR480974,Fleet Management,Vehicle Service,621
http://statistics.data.gov.uk/id/local-authority/12UE,Huntingdonshire District Council,27/03/2013,122093,1345.9,A C Commercials,CR000141,Fleet Management,Vehicle Parts & Fittings,625
http://statistics.data.gov.uk/id/local-authority/12UE,Huntingdonshire District Council,27/03/2013,122863,3331,Terberg Matec Uk Ltd,CR402183,Fleet Management,Vehicle Parts & Fittings,625
http://statistics.data.gov.uk/id/local-authority/12UE,Huntingdonshire District Council,27/03/2013,121982,1365.72,Osborne Richardson,CR482551,Food Safety,Hired Staff,100
http://statistics.data.gov.uk/id/local-authority/12UE,Huntingdonshire District Council,27/03/2013,123530,7293.17,Computershare Vouchers Ltd,CR412205,General Creditors,Deductions Paid To Third Party,26
http://statistics.data.gov.uk/id/local-authority/12UE,Huntingdonshire District Council,21/03/2013,122873,788.61,Peter Lockyer Advertising Ltd,CR033030,Grounds Maintenance (Combined),Recruitment - Advertising,120
http://statistics.data.gov.uk/id/local-authority/12UE,Huntingdonshire District Council,27/03/2013,123512,363.6,Zurich Municipal,CR003638,Grounds Maintenance (Combined),Insurance Public Liability,160
http://statistics.data.gov.uk/id/local-authority/12UE,Huntingdonshire District Council,27/03/2013,122829,544.49,Arthur Ibbett Ltd,CR000430,Grounds Maintenance (Combined),Equipment Purchases,500
http://statistics.data.gov.uk/id/local-authority/12UE,Huntingdonshire District Council,07/03/2013,121539,1735.2,Arthur Ibbett Ltd,CR000430,Grounds Maintenance (Combined),Equipment Purchases,500
http://statistics.data.gov.uk/id/local-authority/12UE,Huntingdonshire District Council,27/03/2013,122108,2059.2,Eynesbury Warehousing,CR032275,Grounds Maintenance (Combined),Equipment Hire,507
http://statistics.data.gov.uk/id/local-authority/12UE,Huntingdonshire District Council,07/03/2013,120824,548.78,Lightning Recruitment,CR028184,Head Of Imd,Hired Staff,100
http://statistics.data.gov.uk/id/local-authority/12UE,Huntingdonshire District Council,14/03/2013,120965,548.78,Lightning Recruitment,CR028184,Head Of Imd,Hired Staff,100
http://statistics.data.gov.uk/id/local-authority/12UE,Huntingdonshire District Council,21/03/2013,121090,548.78,Lightning Recruitment,CR028184,Head Of Imd,Hired Staff,100
http://statistics.data.gov.uk/id/local-authority/12UE,Huntingdonshire District Council,27/03/2013,121570,548.78,Lightning Recruitment,CR028184,Head Of Imd,Hired Staff,100
http://statistics.data.gov.uk/id/local-authority/12UE,Huntingdonshire District Council,27/03/2013,122592,3000,Learning Pool Limited,CR416813,Head Of Imd,Training - I T,134
http://statistics.data.gov.uk/id/local-authority/12UE,Huntingdonshire District Council,27/03/2013,122594,3936.25,Edrm Systems Ltd,CR416278,Helpdesk,Hired Staff,100
http://statistics.data.gov.uk/id/local-authority/12UE,Huntingdonshire District Council,14/03/2013,120973,4187.5,Edrm Systems Ltd,CR416278,Helpdesk,Hired Staff,100
http://statistics.data.gov.uk/id/local-authority/12UE,Huntingdonshire District Council,07/03/2013,121319,1260,Premier It Recruitment Ltd,CR454029,Helpdesk,Hired Staff,100
http://statistics.data.gov.uk/id/local-authority/12UE,Huntingdonshire District Council,21/03/2013,121708,1260,Premier It Recruitment Ltd,CR454029,Helpdesk,Hired Staff,100
http://statistics.data.gov.uk/id/local-authority/12UE,Huntingdonshire District Council,21/03/2013,121710,1260,Premier It Recruitment Ltd,CR454029,Helpdesk,Hired Staff,100
http://statistics.data.gov.uk/id/local-authority/12UE,Huntingdonshire District Council,27/03/2013,122584,1260,Premier It Recruitment Ltd,CR454029,Helpdesk,Hired Staff,100
http://statistics.data.gov.uk/id/local-authority/12UE,Huntingdonshire District Council,27/03/2013,123524,-558,Comtec,CR480140,Helpdesk,Network Hardware,205
http://statistics.data.gov.uk/id/local-authority/12UE,Huntingdonshire District Council,27/03/2013,123523,956.7,Comtec,CR480140,Helpdesk,Network Hardware,205
http://statistics.data.gov.uk/id/local-authority/12UE,Huntingdonshire District Council,07/03/2013,121935,5937.12,Frontrange Solutions,CR403465,Helpdesk,Software,206
http://statistics.data.gov.uk/id/local-authority/12UE,Huntingdonshire District Council,27/03/2013,122459,1244.94,Virgin Media Business,CR033120,Helpdesk,Telephone Charges,240
http://statistics.data.gov.uk/id/local-authority/12UE,Huntingdonshire District Council,07/03/2013,120834,1411.41,Virgin Media Business,CR033120,Helpdesk,Telephone Charges,240
http://statistics.data.gov.uk/id/local-authority/12UE,Huntingdonshire District Council,27/03/2013,122459,2048.06,Virgin Media Business,CR033120,Helpdesk,I T Line Rental,248
http://statistics.data.gov.uk/id/local-authority/12UE,Huntingdonshire District Council,07/03/2013,120834,2048.06,Virgin Media Business,CR033120,Helpdesk,I T Line Rental,248
http://statistics.data.gov.uk/id/local-authority/12UE,Huntingdonshire District Council,27/03/2013,123415,7109.59,Virgin Media Business,CR033120,Helpdesk,I T Line Rental,248
http://statistics.data.gov.uk/id/local-authority/12UE,Huntingdonshire District Council,27/03/2013,123417,33275.04,Virgin Media Business,CR033120,Helpdesk,I T Line Rental,248
http://statistics.data.gov.uk/id/local-authority/12UE,Huntingdonshire District Council,27/03/2013,123419,60182.4,Virgin Media Business,CR033120,Helpdesk,I T Line Rental,248
http://statistics.data.gov.uk/id/local-authority/12UE,Huntingdonshire District Council,21/03/2013,122889,12136.07,Civica Uk Ltd,CR415826,Home Improvement Agency,Software,206
http://statistics.data.gov.uk/id/local-authority/12UE,Huntingdonshire District Council,21/03/2013,121281,947.81,James Andrews Recruitment,CR453753,Housing Management Units,Hired Staff,100
http://statistics.data.gov.uk/id/local-authority/12UE,Huntingdonshire District Council,14/03/2013,120936,974.14,James Andrews Recruitment,CR453753,Housing Management Units,Hired Staff,100
http://statistics.data.gov.uk/id/local-authority/12UE,Huntingdonshire District Council,27/03/2013,121693,974.14,James Andrews Recruitment,CR453753,Housing Management Units,Hired Staff,100
http://statistics.data.gov.uk/id/local-authority/12UE,Huntingdonshire District Council,21/03/2013,122581,3276.57,Swalec,CR407130,Housing Services Other,Electricity,420
http://statistics.data.gov.uk/id/local-authority/12UE,Huntingdonshire District Council,27/03/2013,122592,4200,Learning Pool Limited,CR416813,Human Resources,Training - Health & Safety,133
http://statistics.data.gov.uk/id/local-authority/12UE,Huntingdonshire District Council,21/03/2013,120947,858.6,Northgate Information Solutions Uk Ltd,CR028925,Human Resources,Software,206
http://statistics.data.gov.uk/id/local-authority/12UE,Huntingdonshire District Council,21/03/2013,120946,15369.75,Northgate Information Solutions Uk Ltd,CR028925,Human Resources,Software,206
http://statistics.data.gov.uk/id/local-authority/12UE,Huntingdonshire District Council,21/03/2013,121550,2160,Rsa Environmental Health Limited,CR482415,Human Resources,Consultants,711
http://statistics.data.gov.uk/id/local-authority/12UE,Huntingdonshire District Council,27/03/2013,122611,594,Information & Records Management Society,CR454013,Information Manager,Conferences,137
http://statistics.data.gov.uk/id/local-authority/12UE,Huntingdonshire District Council,07/03/2013,120836,23550,Esri Uk,CR405125,Information Manager,Software,206
http://statistics.data.gov.uk/id/local-authority/12UE,Huntingdonshire District Council,07/03/2013,121763,11131,Cambridgeshire County Council,CR006678,Land Charges,Other Office Expenses,295
http://statistics.data.gov.uk/id/local-authority/12UE,Huntingdonshire District Council,07/03/2013,122177,3453.23,Roger Wilson Electronics,CR028041,Leisure Centres Capital,Gen Building Mtce - Responsive,303
http://statistics.data.gov.uk/id/local-authority/12UE,Huntingdonshire District Council,14/03/2013,121355,1182,Cambridge Flat Roofing,CR479717,Leisure Centres Capital,Gen Building Mtce - Planned,304
http://statistics.data.gov.uk/id/local-authority/12UE,Huntingdonshire District Council,07/03/2013,121648,67126.98,Milk Leisure Ltd,CR455268,Leisure Centres Capital,Gen Building Mtce - Planned,304
http://statistics.data.gov.uk/id/local-authority/12UE,Huntingdonshire District Council,14/03/2013,122408,176476.03,R G Carter Peterborough,CR401511,Leisure Centres Capital,Gen Building Mtce - Planned,304
http://statistics.data.gov.uk/id/local-authority/12UE,Huntingdonshire District Council,07/03/2013,122035,3520.34,Burgin Ltd,CR482438,Leisure Centres Capital,Plant & Equipment Maintenance,380
http://statistics.data.gov.uk/id/local-authority/12UE,Huntingdonshire District Council,14/03/2013,122607,509.09,Life Fitness Uk Ltd,CR004396,Leisure Centres Capital,Equipment Purchases,500
http://statistics.data.gov.uk/id/local-authority/12UE,Huntingdonshire District Council,14/03/2013,121750,3091.07,Caci Limited,CR409683,Leisure Centres Overall,Printing (External),220
http://statistics.data.gov.uk/id/local-authority/12UE,Huntingdonshire District Council,21/03/2013,121566,1412,Clanpress King'S Lynn Ltd,CR413516,Leisure Centres Overall,Printing (External),220
http://statistics.data.gov.uk/id/local-authority/12UE,Huntingdonshire District Council,07/03/2013,121344,238.9,Davies Sports,CR404784,Leisure Development,Equipment Purchases,500
http://statistics.data.gov.uk/id/local-authority/12UE,Huntingdonshire District Council,07/03/2013,121344,298.33,Davies Sports,CR404784,Leisure Development,Sports Equipment,524
http://statistics.data.gov.uk/id/local-authority/12UE,Huntingdonshire District Council,27/03/2013,123135,1200,Adam Groundworks,CR478140,Leisure Services Capital,Building Construction,300
http://statistics.data.gov.uk/id/local-authority/12UE,Huntingdonshire District Council,27/03/2013,121930,1256.1,T C Harrison Ford,CR405072,Licences,Vehicle Inspection,618
http://statistics.data.gov.uk/id/local-authority/12UE,Huntingdonshire District Council,21/03/2013,121931,3582.54,Driver And Vehicle Licensing Agency,CR455597,Licences,Dangerous Structures Removal,713
http://statistics.data.gov.uk/id/local-authority/12UE,Huntingdonshire District Council,18/03/2013,122855,28437.28,Aecom,CR478307,Local Development Framework,Consultants,711
http://statistics.data.gov.uk/id/local-authority/12UE,Huntingdonshire District Council,18/03/2013,122854,31889.66,Aecom,CR478307,Local Development Framework,Consultants,711
http://statistics.data.gov.uk/id/local-authority/12UE,Huntingdonshire District Council,27/03/2013,123453,2466.24,Drivers  Jonas Deloitte,CR400573,Local Development Framework,Consultants,711
http://statistics.data.gov.uk/id/local-authority/12UE,Huntingdonshire District Council,27/03/2013,123456,4632,Drivers  Jonas Deloitte,CR400573,Local Development Framework,Consultants,711
http://statistics.data.gov.uk/id/local-authority/12UE,Huntingdonshire District Council,27/03/2013,123455,9030.25,Drivers  Jonas Deloitte,CR400573,Local Development Framework,Consultants,711
http://statistics.data.gov.uk/id/local-authority/12UE,Huntingdonshire District Council,27/03/2013,123450,4059.72,The Landscape Partnership,CR455142,Local Development Framework,Consultants,711
http://statistics.data.gov.uk/id/local-authority/12UE,Huntingdonshire District Council,07/03/2013,122115,1740,Pos Enterprises,CR413287,Local Development Framework,Corporate Subscriptions,754
http://statistics.data.gov.uk/id/local-authority/12UE,Huntingdonshire District Council,27/03/2013,122459,0.01,Virgin Media Business,CR033120,Member Allowances & Support,Telephone Charges,240
http://statistics.data.gov.uk/id/local-authority/12UE,Huntingdonshire District Council,07/03/2013,120834,0.1,Virgin Media Business,CR033120,Member Allowances & Support,Telephone Charges,240
http://statistics.data.gov.uk/id/local-authority/12UE,Huntingdonshire District Council,27/03/2013,122459,20.7,Virgin Media Business,CR033120,Member Allowances & Support,I T Line Rental,248
http://statistics.data.gov.uk/id/local-authority/12UE,Huntingdonshire District Council,07/03/2013,120834,20.7,Virgin Media Business,CR033120,Member Allowances & Support,I T Line Rental,248
http://statistics.data.gov.uk/id/local-authority/12UE,Huntingdonshire District Council,27/03/2013,122411,850.2,Portakabin Ltd,CR478566,Miscellaneous Grants,Grants (Paid Out),800
http://statistics.data.gov.uk/id/local-authority/12UE,Huntingdonshire District Council,21/03/2013,121686,3900,Northgate Information Solutions Uk Ltd,CR415749,N N D R Administration,Software,206
http://statistics.data.gov.uk/id/local-authority/12UE,Huntingdonshire District Council,07/03/2013,121146,576,Dal-Rod Uk Ltd,CR002782,Nightsoil Collection,Subcontractors,777
http://statistics.data.gov.uk/id/local-authority/12UE,Huntingdonshire District Council,27/03/2013,123482,281.76,Gg Fit Ltd,CR479814,One Leisure Huntingdon,Training - Operational,131
http://statistics.data.gov.uk/id/local-authority/12UE,Huntingdonshire District Council,27/03/2013,122459,11.81,Virgin Media Business,CR033120,One Leisure Huntingdon,Telephone Charges,240
http://statistics.data.gov.uk/id/local-authority/12UE,Huntingdonshire District Council,07/03/2013,120834,0.05,Virgin Media Business,CR033120,One Leisure Huntingdon,Telephone Charges,240
http://statistics.data.gov.uk/id/local-authority/12UE,Huntingdonshire District Council,14/03/2013,122503,1334.2,Chris Robinson T/A Cr Design,CR416482,One Leisure Huntingdon,Gen Building Mtce - Responsive,303
http://statistics.data.gov.uk/id/local-authority/12UE,Huntingdonshire District Council,21/03/2013,122958,3654.43,L J Decorators Ltd,CR455429,One Leisure Huntingdon,Gen Building Mtce - Planned,304
http://statistics.data.gov.uk/id/local-authority/12UE,Huntingdonshire District Council,27/03/2013,123088,892.32,Stanair Industrial Door Services Ltd,CR403493,One Leisure Huntingdon,Plant & Equipment Maintenance,380
http://statistics.data.gov.uk/id/local-authority/12UE,Huntingdonshire District Council,14/03/2013,122172,4821,E-On Energy,CR416430,One Leisure Huntingdon,Electricity,420
http://statistics.data.gov.uk/id/local-authority/12UE,Huntingdonshire District Council,14/03/2013,122168,1266.32,Swalec,CR407130,One Leisure Huntingdon,Electricity,420
http://statistics.data.gov.uk/id/local-authority/12UE,Huntingdonshire District Council,14/03/2013,122422,1403.83,E-On Energy,CR416430,One Leisure Huntingdon,Gas,421
http://statistics.data.gov.uk/id/local-authority/12UE,Huntingdonshire District Council,14/03/2013,122416,5473.81,E-On Energy,CR416430,One Leisure Huntingdon,Gas,421
http://statistics.data.gov.uk/id/local-authority/12UE,Huntingdonshire District Council,14/03/2013,122482,1387.5,Ecocleen Services Limited,CR406985,One Leisure Huntingdon,Building Cleaning Internal,440
http://statistics.data.gov.uk/id/local-authority/12UE,Huntingdonshire District Council,07/03/2013,122017,558,Activ Security Uk Ltd,CR409710,One Leisure Huntingdon,Security,450
http://statistics.data.gov.uk/id/local-authority/12UE,Huntingdonshire District Council,07/03/2013,122018,732,Activ Security Uk Ltd,CR409710,One Leisure Huntingdon,Security,450
http://statistics.data.gov.uk/id/local-authority/12UE,Huntingdonshire District Council,21/03/2013,122944,767.51,Technogym Uk Ltd,CR033037,One Leisure Huntingdon,Equipment Maintenance,511
http://statistics.data.gov.uk/id/local-authority/12UE,Huntingdonshire District Council,21/03/2013,122945,767.51,Technogym Uk Ltd,CR033037,One Leisure Huntingdon,Equipment Maintenance,511
http://statistics.data.gov.uk/id/local-authority/12UE,Huntingdonshire District Council,21/03/2013,122483,742.16,Brenntag Uk Ltd,CR015017,One Leisure Huntingdon,Chemicals,551
http://statistics.data.gov.uk/id/local-authority/12UE,Huntingdonshire District Council,27/03/2013,122549,597.83,Glaxosmithkline,CR010424,One Leisure Huntingdon,Vending Materials,560
http://statistics.data.gov.uk/id/local-authority/12UE,Huntingdonshire District Council,14/03/2013,121518,843.42,Glaxosmithkline,CR010424,One Leisure Huntingdon,Vending Materials,560
http://statistics.data.gov.uk/id/local-authority/12UE,Huntingdonshire District Council,27/03/2013,122624,297.62,G4s Cashservices Uk Ltd,CR407133,One Leisure Huntingdon,Cash Collection,702
http://statistics.data.gov.uk/id/local-authority/12UE,Huntingdonshire District Council,14/03/2013,122471,340.72,Gladstone Mrm,CR405717,One Leisure Huntingdon,Licences,730
http://statistics.data.gov.uk/id/local-authority/12UE,Huntingdonshire District Council,27/03/2013,122013,1265.14,Phonographic Performance Ltd,CR411659,One Leisure Huntingdon,Licences,730
http://statistics.data.gov.uk/id/local-authority/12UE,Huntingdonshire District Council,07/03/2013,122176,162.66,Leisure-Net Solutions,CR411853,One Leisure Huntingdon,Subcontractors,777
http://statistics.data.gov.uk/id/local-authority/12UE,Huntingdonshire District Council,27/03/2013,123482,281.76,Gg Fit Ltd,CR479814,One Leisure Ramsey,Training - Operational,131
http://statistics.data.gov.uk/id/local-authority/12UE,Huntingdonshire District Council,21/03/2013,122647,540,Yell Limited,CR416111,One Leisure Ramsey,Advertising/Promoting Services,255
http://statistics.data.gov.uk/id/local-authority/12UE,Huntingdonshire District Council,27/03/2013,123353,821.81,Ecocleen Services Limited,CR406985,One Leisure Ramsey,Gen Building Mtce - Planned,304
http://statistics.data.gov.uk/id/local-authority/12UE,Huntingdonshire District Council,21/03/2013,122583,2573.89,Swalec,CR407130,One Leisure Ramsey,Electricity,420
http://statistics.data.gov.uk/id/local-authority/12UE,Huntingdonshire District Council,14/03/2013,122425,2497.92,E-On Energy,CR416430,One Leisure Ramsey,Gas,421
http://statistics.data.gov.uk/id/local-authority/12UE,Huntingdonshire District Council,27/03/2013,122624,74.41,G4s Cashservices Uk Ltd,CR407133,One Leisure Ramsey,Cash Collection,702
http://statistics.data.gov.uk/id/local-authority/12UE,Huntingdonshire District Council,14/03/2013,122471,340.7,Gladstone Mrm,CR405717,One Leisure Ramsey,Licences,730
http://statistics.data.gov.uk/id/local-authority/12UE,Huntingdonshire District Council,27/03/2013,122013,914.04,Phonographic Performance Ltd,CR411659,One Leisure Ramsey,Licences,730
http://statistics.data.gov.uk/id/local-authority/12UE,Huntingdonshire District Council,07/03/2013,122176,162.66,Leisure-Net Solutions,CR411853,One Leisure Ramsey,Subcontractors,777
http://statistics.data.gov.uk/id/local-authority/12UE,Huntingdonshire District Council,27/03/2013,123482,281.76,Gg Fit Ltd,CR479814,One Leisure Sawtry,Training - Operational,131
http://statistics.data.gov.uk/id/local-authority/12UE,Huntingdonshire District Council,14/03/2013,122020,1089.3,Ecocleen Services Limited,CR406985,One Leisure Sawtry,Gen Building Mtce - Planned,304
http://statistics.data.gov.uk/id/local-authority/12UE,Huntingdonshire District Council,28/03/2013,123757,-1330.02,Siemens Plc,CR478182,One Leisure Sawtry,Plant & Equipment Maintenance,380
http://statistics.data.gov.uk/id/local-authority/12UE,Huntingdonshire District Council,28/03/2013,122026,1330.02,Siemens Plc,CR478182,One Leisure Sawtry,Plant & Equipment Maintenance,380
http://statistics.data.gov.uk/id/local-authority/12UE,Huntingdonshire District Council,07/03/2013,122034,1522.12,Swalec,CR407130,One Leisure Sawtry,Electricity,420
http://statistics.data.gov.uk/id/local-authority/12UE,Huntingdonshire District Council,21/03/2013,122962,5598.92,Swalec,CR407130,One Leisure Sawtry,Electricity,420
http://statistics.data.gov.uk/id/local-authority/12UE,Huntingdonshire District Council,14/03/2013,122421,2114.34,E-On Energy,CR416430,One Leisure Sawtry,Gas,421
http://statistics.data.gov.uk/id/local-authority/12UE,Huntingdonshire District Council,21/03/2013,122658,1036.35,Anglian Water,CR000071,One Leisure Sawtry,Water,432
http://statistics.data.gov.uk/id/local-authority/12UE,Huntingdonshire District Council,21/03/2013,122616,1188,Reality Solutions Ltd,CR478969,One Leisure Sawtry,Equipment Purchases,500
http://statistics.data.gov.uk/id/local-authority/12UE,Huntingdonshire District Council,27/03/2013,122624,74.41,G4s Cashservices Uk Ltd,CR407133,One Leisure Sawtry,Cash Collection,702
http://statistics.data.gov.uk/id/local-authority/12UE,Huntingdonshire District Council,14/03/2013,122471,340.72,Gladstone Mrm,CR405717,One Leisure Sawtry,Licences,730
http://statistics.data.gov.uk/id/local-authority/12UE,Huntingdonshire District Council,27/03/2013,122013,914.04,Phonographic Performance Ltd,CR411659,One Leisure Sawtry,Licences,730
http://statistics.data.gov.uk/id/local-authority/12UE,Huntingdonshire District Council,07/03/2013,122176,162.67,Leisure-Net Solutions,CR411853,One Leisure Sawtry,Subcontractors,777
http://statistics.data.gov.uk/id/local-authority/12UE,Huntingdonshire District Council,27/03/2013,123494,577.2,Affinity Nationwide Support Services,CR482612,One Leisure St Ives,Hired Staff,100
http://statistics.data.gov.uk/id/local-authority/12UE,Huntingdonshire District Council,07/03/2013,122179,550.86,Peter Lockyer Advertising Ltd,CR033030,One Leisure St Ives,Recruitment - Advertising,120
http://statistics.data.gov.uk/id/local-authority/12UE,Huntingdonshire District Council,21/03/2013,122465,1840.8,Peter Lockyer Advertising Ltd,CR033030,One Leisure St Ives,Recruitment - Advertising,120
http://statistics.data.gov.uk/id/local-authority/12UE,Huntingdonshire District Council,27/03/2013,123482,281.76,Gg Fit Ltd,CR479814,One Leisure St Ives,Training - Operational,131
http://statistics.data.gov.uk/id/local-authority/12UE,Huntingdonshire District Council,14/03/2013,122006,4080,Lynx Bowling Services,CR455532,One Leisure St Ives,Training - Operational,131
http://statistics.data.gov.uk/id/local-authority/12UE,Huntingdonshire District Council,21/03/2013,122608,9665.84,Premier Software Solutions Ltd,CR480758,One Leisure St Ives,Software,206
http://statistics.data.gov.uk/id/local-authority/12UE,Huntingdonshire District Council,27/03/2013,122459,4.22,Virgin Media Business,CR033120,One Leisure St Ives,Telephone Charges,240
http://statistics.data.gov.uk/id/local-authority/12UE,Huntingdonshire District Council,07/03/2013,120834,4.44,Virgin Media Business,CR033120,One Leisure St Ives,Telephone Charges,240
http://statistics.data.gov.uk/id/local-authority/12UE,Huntingdonshire District Council,27/03/2013,123519,765,Mr Don Bland,CR455646,One Leisure St Ives,Gen Building Mtce - Responsive,303
http://statistics.data.gov.uk/id/local-authority/12UE,Huntingdonshire District Council,14/03/2013,121192,3312,Aragon Homes Ltd,CR132307,One Leisure St Ives,Gen Building Mtce - Planned,304
http://statistics.data.gov.uk/id/local-authority/12UE,Huntingdonshire District Council,14/03/2013,122166,3195.7,E-On Energy,CR416430,One Leisure St Ives,Electricity,420
http://statistics.data.gov.uk/id/local-authority/12UE,Huntingdonshire District Council,14/03/2013,122170,9736.22,E-On Energy,CR416430,One Leisure St Ives,Electricity,420
http://statistics.data.gov.uk/id/local-authority/12UE,Huntingdonshire District Council,14/03/2013,122423,1161.1,E-On Energy,CR416430,One Leisure St Ives,Gas,421
http://statistics.data.gov.uk/id/local-authority/12UE,Huntingdonshire District Council,14/03/2013,122414,5220.38,E-On Energy,CR416430,One Leisure St Ives,Gas,421
http://statistics.data.gov.uk/id/local-authority/12UE,Huntingdonshire District Council,14/03/2013,121984,1750.19,Ecocleen Services Limited,CR406985,One Leisure St Ives,Building Cleaning Internal,440
http://statistics.data.gov.uk/id/local-authority/12UE,Huntingdonshire District Council,21/03/2013,122578,19.43,Booker Cash And Carry,CR027611,One Leisure St Ives,Cleaning Materials,443
http://statistics.data.gov.uk/id/local-authority/12UE,Huntingdonshire District Council,14/03/2013,122333,36.31,Booker Cash And Carry,CR027611,One Leisure St Ives,Cleaning Materials,443
http://statistics.data.gov.uk/id/local-authority/12UE,Huntingdonshire District Council,14/03/2013,121194,1506,Ken Booth & Co,CR000305,One Leisure St Ives,Equipment Purchases,500
http://statistics.data.gov.uk/id/local-authority/12UE,Huntingdonshire District Council,27/03/2013,122576,46.52,Booker Cash And Carry,CR027611,One Leisure St Ives,Materials,550
http://statistics.data.gov.uk/id/local-authority/12UE,Huntingdonshire District Council,14/03/2013,122331,43.3,Booker Cash And Carry,CR027611,One Leisure St Ives,Materials,550
http://statistics.data.gov.uk/id/local-authority/12UE,Huntingdonshire District Council,14/03/2013,122333,56.95,Booker Cash And Carry,CR027611,One Leisure St Ives,Materials,550
http://statistics.data.gov.uk/id/local-authority/12UE,Huntingdonshire District Council,14/03/2013,122009,1382.05,Harlequin Costume Hire,CR006741,One Leisure St Ives,Materials,550
http://statistics.data.gov.uk/id/local-authority/12UE,Huntingdonshire District Council,27/03/2013,122444,1567.78,Brenntag Uk Ltd,CR015017,One Leisure St Ives,Chemicals,551
http://statistics.data.gov.uk/id/local-authority/12UE,Huntingdonshire District Council,21/03/2013,122577,629.63,Booker Cash And Carry,CR027611,One Leisure St Ives,Bar Provisions,558
http://statistics.data.gov.uk/id/local-authority/12UE,Huntingdonshire District Council,21/03/2013,122578,268.1,Booker Cash And Carry,CR027611,One Leisure St Ives,Bar Provisions,558
http://statistics.data.gov.uk/id/local-authority/12UE,Huntingdonshire District Council,27/03/2013,122576,120.24,Booker Cash And Carry,CR027611,One Leisure St Ives,Bar Provisions,558
http://statistics.data.gov.uk/id/local-authority/12UE,Huntingdonshire District Council,14/03/2013,122331,305.81,Booker Cash And Carry,CR027611,One Leisure St Ives,Bar Provisions,558
http://statistics.data.gov.uk/id/local-authority/12UE,Huntingdonshire District Council,14/03/2013,122333,960.2,Booker Cash And Carry,CR027611,One Leisure St Ives,Bar Provisions,558
http://statistics.data.gov.uk/id/local-authority/12UE,Huntingdonshire District Council,21/03/2013,121671,1320.86,Heineken Uk Ltd,CR032678,One Leisure St Ives,Bar Provisions,558
http://statistics.data.gov.uk/id/local-authority/12UE,Huntingdonshire District Council,21/03/2013,122578,390.59,Booker Cash And Carry,CR027611,One Leisure St Ives,Catering Materials,559
http://statistics.data.gov.uk/id/local-authority/12UE,Huntingdonshire District Council,27/03/2013,122576,516.8,Booker Cash And Carry,CR027611,One Leisure St Ives,Catering Materials,559
http://statistics.data.gov.uk/id/local-authority/12UE,Huntingdonshire District Council,14/03/2013,122331,430.08,Booker Cash And Carry,CR027611,One Leisure St Ives,Catering Materials,559
http://statistics.data.gov.uk/id/local-authority/12UE,Huntingdonshire District Council,14/03/2013,122333,33.25,Booker Cash And Carry,CR027611,One Leisure St Ives,Catering Materials,559
http://statistics.data.gov.uk/id/local-authority/12UE,Huntingdonshire District Council,14/03/2013,122330,644.21,Booker Cash And Carry,CR027611,One Leisure St Ives,Vending Materials,560
http://statistics.data.gov.uk/id/local-authority/12UE,Huntingdonshire District Council,27/03/2013,122576,60.29,Booker Cash And Carry,CR027611,One Leisure St Ives,Confectionery,572
http://statistics.data.gov.uk/id/local-authority/12UE,Huntingdonshire District Council,14/03/2013,122331,86.93,Booker Cash And Carry,CR027611,One Leisure St Ives,Confectionery,572
http://statistics.data.gov.uk/id/local-authority/12UE,Huntingdonshire District Council,14/03/2013,121189,853.61,Thurlow Nunn Standen Ltd,CR001534,One Leisure St Ives,Vehicle Maintenance External,619
http://statistics.data.gov.uk/id/local-authority/12UE,Huntingdonshire District Council,27/03/2013,122624,223.22,G4s Cashservices Uk Ltd,CR407133,One Leisure St Ives,Cash Collection,702
http://statistics.data.gov.uk/id/local-authority/12UE,Huntingdonshire District Council,14/03/2013,122471,340.7,Gladstone Mrm,CR405717,One Leisure St Ives,Licences,730
http://statistics.data.gov.uk/id/local-authority/12UE,Huntingdonshire District Council,27/03/2013,122013,1786.32,Phonographic Performance Ltd,CR411659,One Leisure St Ives,Licences,730
http://statistics.data.gov.uk/id/local-authority/12UE,Huntingdonshire District Council,21/03/2013,123119,3000,Entertainers Agency Ltd,CR403285,One Leisure St Ives,Entertainments Inc Cable Tv,744
http://statistics.data.gov.uk/id/local-authority/12UE,Huntingdonshire District Council,27/03/2013,123438,543.6,Sky Business,CR033259,One Leisure St Ives,Entertainments Inc Cable Tv,744
http://statistics.data.gov.uk/id/local-authority/12UE,Huntingdonshire District Council,07/03/2013,122176,162.66,Leisure-Net Solutions,CR411853,One Leisure St Ives,Subcontractors,777
http://statistics.data.gov.uk/id/local-authority/12UE,Huntingdonshire District Council,27/03/2013,123482,281.76,Gg Fit Ltd,CR479814,One Leisure St Neots,Training - Operational,131
http://statistics.data.gov.uk/id/local-authority/12UE,Huntingdonshire District Council,21/03/2013,121757,713.04,Borney (Uk) Ltd,CR144249,One Leisure St Neots,Advertising/Promoting Services,255
http://statistics.data.gov.uk/id/local-authority/12UE,Huntingdonshire District Council,14/03/2013,122144,568.8,Jewson,CR000455,One Leisure St Neots,Gen Building Mtce - Responsive,303
http://statistics.data.gov.uk/id/local-authority/12UE,Huntingdonshire District Council,14/03/2013,121301,613.14,Roger Wilson Electronics,CR028041,One Leisure St Neots,Gen Building Mtce - Responsive,303
http://statistics.data.gov.uk/id/local-authority/12UE,Huntingdonshire District Council,07/03/2013,121302,600,Asr,CR482312,One Leisure St Neots,Gen Building Mtce - Planned,304
http://statistics.data.gov.uk/id/local-authority/12UE,Huntingdonshire District Council,21/03/2013,122857,1105.79,Anglian Water,CR000071,One Leisure St Neots,Electricity,420
http://statistics.data.gov.uk/id/local-authority/12UE,Huntingdonshire District Council,14/03/2013,122167,8846.6,E-On Energy,CR416430,One Leisure St Neots,Electricity,420
http://statistics.data.gov.uk/id/local-authority/12UE,Huntingdonshire District Council,14/03/2013,122420,552.41,E-On Energy,CR416430,One Leisure St Neots,Gas,421
http://statistics.data.gov.uk/id/local-authority/12UE,Huntingdonshire District Council,14/03/2013,122419,4092.49,E-On Energy,CR416430,One Leisure St Neots,Gas,421
http://statistics.data.gov.uk/id/local-authority/12UE,Huntingdonshire District Council,14/03/2013,121635,531.31,Brenntag Uk Ltd,CR015017,One Leisure St Neots,Chemicals,551
http://statistics.data.gov.uk/id/local-authority/12UE,Huntingdonshire District Council,21/03/2013,123054,889,Snackline Direct Ltd,CR478090,One Leisure St Neots,Vending Materials,560
http://statistics.data.gov.uk/id/local-authority/12UE,Huntingdonshire District Council,27/03/2013,122624,446.44,G4s Cashservices Uk Ltd,CR407133,One Leisure St Neots,Cash Collection,702
http://statistics.data.gov.uk/id/local-authority/12UE,Huntingdonshire District Council,14/03/2013,122471,340.72,Gladstone Mrm,CR405717,One Leisure St Neots,Licences,730
http://statistics.data.gov.uk/id/local-authority/12UE,Huntingdonshire District Council,27/03/2013,122013,1113.6,Phonographic Performance Ltd,CR411659,One Leisure St Neots,Licences,730
http://statistics.data.gov.uk/id/local-authority/12UE,Huntingdonshire District Council,07/03/2013,122176,162.67,Leisure-Net Solutions,CR411853,One Leisure St Neots,Subcontractors,777
http://statistics.data.gov.uk/id/local-authority/12UE,Huntingdonshire District Council,27/03/2013,122829,19.9,Arthur Ibbett Ltd,CR000430,Parks & Open Spaces,Playground Equipment,360
http://statistics.data.gov.uk/id/local-authority/12UE,Huntingdonshire District Council,27/03/2013,121914,1380,The Children'S Playground Co Ltd,CR455321,Parks Equipment Capital,Playground Equipment,360
http://statistics.data.gov.uk/id/local-authority/12UE,Huntingdonshire District Council,07/03/2013,120906,1202.58,Kone Lifts Ltd,CR000483,Pathfinder House Site,Plant & Equipment Maintenance,380
http://statistics.data.gov.uk/id/local-authority/12UE,Huntingdonshire District Council,27/03/2013,122340,3405,Playfords Ltd,CR479055,Pathfinder House Site,Plant & Equipment Maintenance,380
http://statistics.data.gov.uk/id/local-authority/12UE,Huntingdonshire District Council,14/03/2013,122164,9467.38,E-On Energy,CR416430,Pathfinder House Site,Electricity,420
http://statistics.data.gov.uk/id/local-authority/12UE,Huntingdonshire District Council,14/03/2013,122415,4451.65,E-On Energy,CR416430,Pathfinder House Site,Gas,421
http://statistics.data.gov.uk/id/local-authority/12UE,Huntingdonshire District Council,14/03/2013,121898,2146.93,Ecocleen Services Limited,CR406985,Pathfinder House Site,Building Cleaning Internal,440
http://statistics.data.gov.uk/id/local-authority/12UE,Huntingdonshire District Council,27/03/2013,121963,620.16,Maskearaid Ind Supplies,CR033423,Pathfinder House Site,Cleaning Materials,443
http://statistics.data.gov.uk/id/local-authority/12UE,Huntingdonshire District Council,27/03/2013,122382,1200,Glasdon Uk Ltd,CR002827,Pathfinder House Site,Refuse Sacks,552
http://statistics.data.gov.uk/id/local-authority/12UE,Huntingdonshire District Council,21/03/2013,120947,858.6,Northgate Information Solutions Uk Ltd,CR028925,Payroll,Software,206
http://statistics.data.gov.uk/id/local-authority/12UE,Huntingdonshire District Council,21/03/2013,120946,15369.74,Northgate Information Solutions Uk Ltd,CR028925,Payroll,Software,206
http://statistics.data.gov.uk/id/local-authority/12UE,Huntingdonshire District Council,14/03/2013,122612,810,Xchange Training Uk Ltd,CR455401,Planning M U'S,Training - Professional,130
http://statistics.data.gov.uk/id/local-authority/12UE,Huntingdonshire District Council,07/03/2013,121947,4947.41,Misl,CR478637,Planning M U'S,Electronic Document Imaging,229
http://statistics.data.gov.uk/id/local-authority/12UE,Huntingdonshire District Council,27/03/2013,123452,6852.16,Drivers  Jonas Deloitte,CR400573,Project Contributions,Subcontractors,777
http://statistics.data.gov.uk/id/local-authority/12UE,Huntingdonshire District Council,07/03/2013,120926,528,Style Midlands,CR455512,Property Development And Mgt,Gen Building Mtce - Responsive,303
http://statistics.data.gov.uk/id/local-authority/12UE,Huntingdonshire District Council,08/03/2013,120322,720,Dms Home Improvements & Electrical,CR479202,Property Development And Mgt,Gen Building Mtce - Planned,304
http://statistics.data.gov.uk/id/local-authority/12UE,Huntingdonshire District Council,07/03/2013,120845,1818.89,J Breheny Contractors Ltd,CR000314,Property Development And Mgt,Sitework,359
http://statistics.data.gov.uk/id/local-authority/12UE,Huntingdonshire District Council,07/03/2013,120849,5368.2,J Breheny Contractors Ltd,CR000314,Property Development And Mgt,Sitework,359
http://statistics.data.gov.uk/id/local-authority/12UE,Huntingdonshire District Council,07/03/2013,120851,9403.4,J Breheny Contractors Ltd,CR000314,Property Development And Mgt,Sitework,359
http://statistics.data.gov.uk/id/local-authority/12UE,Huntingdonshire District Council,07/03/2013,121940,928.24,Swalec,CR407130,Property Development And Mgt,Electricity,420
http://statistics.data.gov.uk/id/local-authority/12UE,Huntingdonshire District Council,27/03/2013,122912,1000,Young Enterprise (East Of England),CR478013,Property Development And Mgt,Grants (Paid Out),800
http://statistics.data.gov.uk/id/local-authority/12UE,Huntingdonshire District Council,27/03/2013,122174,3600,Nwes Property Services Ltd,CR479264,Public Accountability,Advertising/Promoting Services,255
http://statistics.data.gov.uk/id/local-authority/12UE,Huntingdonshire District Council,14/03/2013,121902,658.1,Ecocleen Services Limited,CR406985,Public Conveniences,Building Cleaning Internal,440
http://statistics.data.gov.uk/id/local-authority/12UE,Huntingdonshire District Council,14/03/2013,121905,1117.68,Ecocleen Services Limited,CR406985,Public Conveniences,Building Cleaning Internal,440
http://statistics.data.gov.uk/id/local-authority/12UE,Huntingdonshire District Council,14/03/2013,121590,2001.58,Staffline Group,CR416827,Recycling,Hired Staff,100
http://statistics.data.gov.uk/id/local-authority/12UE,Huntingdonshire District Council,07/03/2013,121265,2296.75,Staffline Group,CR416827,Recycling,Hired Staff,100
http://statistics.data.gov.uk/id/local-authority/12UE,Huntingdonshire District Council,21/03/2013,122086,2996.83,Staffline Group,CR416827,Recycling,Hired Staff,100
http://statistics.data.gov.uk/id/local-authority/12UE,Huntingdonshire District Council,27/03/2013,122918,3121.56,Staffline Group,CR416827,Recycling,Hired Staff,100
http://statistics.data.gov.uk/id/local-authority/12UE,Huntingdonshire District Council,21/03/2013,122922,3396.07,Staffline Group,CR416827,Recycling,Hired Staff,100
http://statistics.data.gov.uk/id/local-authority/12UE,Huntingdonshire District Council,28/03/2013,118519,-579.53,Cummins Uk,CR480395,Recycling,Vehicle Maintenance External,619
http://statistics.data.gov.uk/id/local-authority/12UE,Huntingdonshire District Council,28/03/2013,123333,579.53,Cummins Uk,CR480395,Recycling,Vehicle Maintenance External,619
http://statistics.data.gov.uk/id/local-authority/12UE,Huntingdonshire District Council,27/03/2013,121595,-1607.11,Viridor Waste Management Ltd,CR482408,Recycling,Recycling Collections,747
http://statistics.data.gov.uk/id/local-authority/12UE,Huntingdonshire District Council,27/03/2013,121596,1407.18,Viridor Waste Management Ltd,CR482408,Recycling,Recycling Collections,747
http://statistics.data.gov.uk/id/local-authority/12UE,Huntingdonshire District Council,27/03/2013,122861,5695.74,Viridor Waste Management Ltd,CR482408,Recycling,Recycling Collections,747
http://statistics.data.gov.uk/id/local-authority/12UE,Huntingdonshire District Council,27/03/2013,123560,902.4,Morgan Hunt Public Uk Ltd,CR415693,Revenue Services Mus,Hired Staff,100
http://statistics.data.gov.uk/id/local-authority/12UE,Huntingdonshire District Council,07/03/2013,121889,921.6,Morgan Hunt Public Uk Ltd,CR415693,Revenue Services Mus,Hired Staff,100
http://statistics.data.gov.uk/id/local-authority/12UE,Huntingdonshire District Council,27/03/2013,122618,928.8,Morgan Hunt Public Uk Ltd,CR415693,Revenue Services Mus,Hired Staff,100
http://statistics.data.gov.uk/id/local-authority/12UE,Huntingdonshire District Council,14/03/2013,122162,1000.8,Morgan Hunt Public Uk Ltd,CR415693,Revenue Services Mus,Hired Staff,100
http://statistics.data.gov.uk/id/local-authority/12UE,Huntingdonshire District Council,07/03/2013,121890,1022.4,Morgan Hunt Public Uk Ltd,CR415693,Revenue Services Mus,Hired Staff,100
http://statistics.data.gov.uk/id/local-authority/12UE,Huntingdonshire District Council,27/03/2013,123559,1022.4,Morgan Hunt Public Uk Ltd,CR415693,Revenue Services Mus,Hired Staff,100
http://statistics.data.gov.uk/id/local-authority/12UE,Huntingdonshire District Council,07/03/2013,122163,2250,Acs Ltd,CR480430,Revenue Services Mus,Training - Other,136
http://statistics.data.gov.uk/id/local-authority/12UE,Huntingdonshire District Council,21/03/2013,121581,4836,Cipfa Business Limited,CR480088,Revenue Services Mus,Training - Other,136
http://statistics.data.gov.uk/id/local-authority/12UE,Huntingdonshire District Council,07/03/2013,122159,5400,Cipfa Business Limited,CR480088,Revenue Services Mus,Training - Other,136
http://statistics.data.gov.uk/id/local-authority/12UE,Huntingdonshire District Council,21/03/2013,121526,185.68,T N T Post London Ltd,CR479965,Revenue Services Mus,Postage,231
http://statistics.data.gov.uk/id/local-authority/12UE,Huntingdonshire District Council,21/03/2013,122901,1112.98,L A Directories Ltd,CR479153,Revenue Services Mus,Books & Publications,250
http://statistics.data.gov.uk/id/local-authority/12UE,Huntingdonshire District Council,14/03/2013,122028,4052.4,Magnet Solutions,CR416903,Revenue Services Mus,Enquiries,723
http://statistics.data.gov.uk/id/local-authority/12UE,Huntingdonshire District Council,27/03/2013,122386,1659.6,Sarfo Solicitors,CR415973,Revenue Services Mus,Legal Fees,729
http://statistics.data.gov.uk/id/local-authority/12UE,Huntingdonshire District Council,14/03/2013,121312,1301.68,Dell Computer Corporation,CR408320,Software Capital,P C'S And Accessories,201
http://statistics.data.gov.uk/id/local-authority/12UE,Huntingdonshire District Council,07/03/2013,121063,1759.79,Dell Computer Corporation,CR408320,Software Capital,P C'S And Accessories,201
http://statistics.data.gov.uk/id/local-authority/12UE,Huntingdonshire District Council,07/03/2013,119161,10740.6,Capita Business Services Ltd,CR410639,Software Capital,Software,206
http://statistics.data.gov.uk/id/local-authority/12UE,Huntingdonshire District Council,07/03/2013,119260,72745.36,Kelway (Uk) Ltd,CR004345,Software Capital,Equipment Maintenance,511
http://statistics.data.gov.uk/id/local-authority/12UE,Huntingdonshire District Council,21/03/2013,120829,6157.5,Advanced Business Solutions,CR032921,Software Capital,Consultants,711
http://statistics.data.gov.uk/id/local-authority/12UE,Huntingdonshire District Council,07/03/2013,121266,1362.82,Staffline Group,CR416827,Street Cleaning,Hired Staff,100
http://statistics.data.gov.uk/id/local-authority/12UE,Huntingdonshire District Council,27/03/2013,122920,1468.31,Staffline Group,CR416827,Street Cleaning,Hired Staff,100
http://statistics.data.gov.uk/id/local-authority/12UE,Huntingdonshire District Council,21/03/2013,122083,1468.32,Staffline Group,CR416827,Street Cleaning,Hired Staff,100
http://statistics.data.gov.uk/id/local-authority/12UE,Huntingdonshire District Council,14/03/2013,121588,1575.76,Staffline Group,CR416827,Street Cleaning,Hired Staff,100
http://statistics.data.gov.uk/id/local-authority/12UE,Huntingdonshire District Council,07/03/2013,121557,535.09,Breheny Contractors Ltd,CR027653,Street Cleaning,Litter Bins,520
http://statistics.data.gov.uk/id/local-authority/12UE,Huntingdonshire District Council,07/03/2013,121149,1996.62,Breheny Contractors Ltd,CR027653,Street Cleaning,Litter Bins,520
http://statistics.data.gov.uk/id/local-authority/12UE,Huntingdonshire District Council,14/03/2013,121956,7812.48,Glasdon Uk Ltd,CR002827,Street Cleaning,Litter Bins,520
http://statistics.data.gov.uk/id/local-authority/12UE,Huntingdonshire District Council,21/03/2013,122818,1227.36,Johnston Engineering Ltd,CR029831,Street Cleaning,Vehicle Parts & Fittings,625
http://statistics.data.gov.uk/id/local-authority/12UE,Huntingdonshire District Council,27/03/2013,122428,1184.8,Bandvulc Tyres Ltd,CR406810,Street Cleaning,Tyres,630
http://statistics.data.gov.uk/id/local-authority/12UE,Huntingdonshire District Council,07/03/2013,121556,2363,Cambridgeshire County Council,CR006678,Trade Refuse,Waste Disposal,763
http://statistics.data.gov.uk/id/local-authority/12UE,Huntingdonshire District Council,07/03/2013,121765,900,Allen & Overy,CR455592,Transport Schemes,Consultants,711
http://statistics.data.gov.uk/id/local-authority/12UE,Huntingdonshire District Council,21/03/2013,121933,1587,Crowders Nurseries,CR411361,Trees,Trees/Shrubs,555
http://statistics.data.gov.uk/id/local-authority/12UE,Huntingdonshire District Council,07/03/2013,120847,1434.26,J Breheny Contractors Ltd,CR000314,Watercourses,Sitework,359
http://statistics.data.gov.uk/id/local-authority/12UE,Huntingdonshire District Council,07/03/2013,120846,8022.91,J Breheny Contractors Ltd,CR000314,Watercourses,Sitework,359
